Cogmind - Beta 14 @@@ ROGUE MODE // 2024.11.21 @ 01:39:48 Player: KURIIRI Result: Self-destructed Performance ------------- Evolutions (1) 500 Regions Visited (3) 600 Robots Destroyed (83) 415 Value Destroyed (2147) 2147 Prototype IDs (6) 120 Alien Tech Used (0) 0 Bonus (288) 288 TOTAL SCORE: 4070 Bonus ------- High Alert Combat Kills 288 Cogmind --------- Core Integrity 120/400 Matter 218/300 Energy 280/280 System Corruption 0% Temperature Cool (0) Movement Treading (160) Location -9/Mines Parts ------- > --- POWER (1) -------- Heavy Ion Engine > --- PROPULSION (3) --- Light Treads Light Treads Light Treads > --- UTILITY (3) ------ Large Storage Unit Medium Armor Plating System Shield > --- WEAPON (2) ------- Flak Cannon Flak Cannon > --- INVENTORY (15) --- Light Treads Light Treads Armored Wheel Hardened Light Armor Plating Hardened Light Armor Plating Hardened Light Armor Plating Hacking Suite Light EM Pulse Cannon Flak Cannon Flak Cannon Grenade Launcher Datajack Flail Katana Peak State ------------ > --- POWER ------------ Improved Ion Engine > --- PROPULSION ------- Light Treads Light Treads Improved Treads > --- UTILITY ---------- High-capacity Storage Unit Hardened Light Armor Plating System Shield > --- WEAPON ----------- Flak Cannon Flak Cannon > --- INVENTORY -------- Light Ion Engine Light Treads Light Treads Light Treads Armored Wheel Large Storage Unit Hardened Light Armor Plating Hardened Light Armor Plating System Shield Light EM Pulse Cannon Light EM Pulse Cannon Light EM Pulse Cannon Flak Cannon Flak Cannon Grenade Launcher Datajack Flail [Rating: 21] Favorites ----------- Power Light Ion Engine Engine Light Ion Engine Propulsion Light Treads Treads Light Treads Utility Large Storage Unit Storage Large Storage Unit Processor Transport Network Coupler Hackware System Shield Protection Hardened Light Armor Plating Weapon Flak Cannon Energy Gun EM Pulse Gun Energy Cannon Light EM Pulse Cannon Ballistic Gun Assault Rifle Ballistic Cannon Flak Cannon Launcher Grenade Launcher Impact Weapon Flail Build | -11 -10 -9 -9 ------- Run | Yrd Mat Mat Min Slots Evolved 2 | . . 2 . Power . | . . . . Propulsion 1 | . . 1 . Utility 1 | . . 1 . Weapon . | . . . . Parts Attached 56 | 7 14 35 . Power 5 | 1 2 2 . Engine 5 | 1 2 2 . Core . | . . . . Reactor . | . . . . Propulsion 12 | 2 3 7 . Treads 12 | 2 3 7 . Leg . | . . . . Wheel . | . . . . Hover . | . . . . Flight . | . . . . Utility 15 | 1 3 11 . Device . | . . . . Storage 5 | 1 2 2 . Processor 1 | . 1 . . Hackware 3 | . . 3 . Protection 6 | . . 6 . Artifact . | . . . . Weapon 24 | 3 6 15 . Energy Gun 7 | 1 3 3 . Energy Cannon 6 | . . 6 . Ballistic Gun 4 | 2 1 1 . Ballistic Cannon 2 | . . 2 . Launcher 3 | . 2 1 . Special Weapon . | . . . . Impact Weapon 2 | . . 2 . Slashing Weapon . | . . . . Piercing Weapon . | . . . . Special Melee Weapon . | . . . . Unidentified Prototypes 2 | . . 2 . Parts Lost 7 | . 4 3 . Power 2 | . 2 . . Propulsion 2 | . 1 1 . Utility 1 | . . 1 . Weapon 2 | . 1 1 . Highest Loss Streak 2 | . 2 1 . To Critical Strikes . | . . . . Average Slot Usage (%) 91 | . 84 97 . Engine 10 | . 10 11 . Treads 29 | . 27 31 . Storage 12 | . 14 11 . Processor 1 | . 2 . . Hackware 5 | . . 10 . Protection 5 | . . 10 . Energy Gun 7 | . 13 2 . Energy Cannon 3 | . . 5 . Ballistic Gun 7 | . 14 2 . Ballistic Cannon 6 | . . 11 . Peak Build Rating 21 | 6 8 21 . Average Rating 12 | 4 6 17 . On Entrance 8 | . 6 8 20 Naked Turns . | . . . . Heaviest Build 64 | 12 27 64 . Greatest Support 63 | 40 40 63 . Greatest Overweight (x) 1 | . . 1 . Average Overweight (x) . | . . . . Largest Inventory Capacity 20 | 8 15 20 . Average Capacity 12 | 6 8 15 . Most Carried 17 | 2 9 17 . Average Carried 10 | 1 7 13 . Final Capacity 15 | 8 15 15 15 Final Carried 14 | 2 8 14 14 Class Distribution -------------------- 81% | Mutant 18% | Scavenger-Mutant Dominant Class ---------------- Mutant | -10/Materials Mutant | -9/Materials Mutant | -9/Mines Resources | -11 -10 -9 -9 ----------- Run | Yrd Mat Mat Min Matter Collected 1601 | 248 363 990 . Remotely . | . . . . Salvage Created 2663 | . 780 1883 . Parts 145 | . 53 92 . Haulers Intercepted 5 | . 1 4 . Recyclers Shooed 6 | . . 6 . Parts Field Recycled . | . . . . Retrieved Matter . | . . . . Parts Self-Destructed . | . . . . Prevented . | . . . . Kills | -11 -10 -9 -9 ------- Run | Yrd Mat Mat Min Combat Hostiles Destroyed 58 | . 18 40 . Melee 2 | . . 2 . Guns 16 | . 12 4 . Cannons 28 | . . 28 . AOE 9 | . 6 3 . Classes Destroyed 13 | . 7 6 . Worker 1 | . . 1 . Builder 3 | . 1 2 . Tunneler 1 | . . 1 . Hauler 5 | . 1 4 . Recycler 5 | . 1 4 . Operator 3 | . 1 2 . Watcher 7 | . 3 4 . Swarmer 12 | . 6 6 . Grunt 35 | . 12 23 . Brawler 1 | . . 1 . Duelist 2 | . . 2 . Protector 1 | . . 1 . Sentry 7 | . . 7 . Best Kill Streak 12 | . 5 12 . Combat Bots Only 8 | . 3 8 . Max Kills in Single Turn 2 | . 2 2 . Gunslinging 1 | . . 1 . Exploded 1 | . 1 1 . Melee 1 | . . 1 . Uniques/NPCs Destroyed . | . . . . Combat | -11 -10 -9 -9 -------- Run | Yrd Mat Mat Min Hostile Shots Fired 239 | . 82 157 . Missed 64 | . 30 34 . Damage Taken 2392 | . 679 1713 . Core 419 | . 139 280 . Absorbed by Shields . | . . . . Regen/Repaired (Parts) 334 | . 112 222 . Core Remaining (%) 72 | 100 44 . . Volleys Fired 186 | . 68 118 . Largest 2 | . 2 2 . Hottest 118 | . 70 118 . Shots Fired 347 | . 127 220 . Gun 184 | . 124 60 . Cannon 156 | . . 156 . Launcher 7 | . 3 4 . Special . | . . . . Kinetic 181 | . 70 111 . Thermal 68 | . 20 48 . Explosive 7 | . 3 4 . Electromagnetic 91 | . 34 57 . Robot Hit Streak 15 | . 15 9 . Robot Miss Streak 9 | . 4 9 . Penetration Max . | . . . . Secondary Targets 2 | . 1 1 . Max Gunslinging Chain 1 | . 1 1 . Shots Hit Robots 243 | . 77 166 . Core Hits 160 | . 41 119 . Critical Kills 4 | . . 4 . Critical Parts Destroyed 1 | . . 1 . Critical Strikes 10 | . 1 9 . Burn 5 | . 1 4 . Meltdown 3 | . . 3 . Smash 2 | . . 2 . Melee Attacks 17 | . . 17 . Impact 17 | . . 17 . Slashing . | . . . . Piercing . | . . . . Sneak Attacks 3 | . . 3 . Combat Hostiles . | . . . . Follow-up Attacks . | . . . . Damage Inflicted 5647 | . 1479 4168 . Guns 1629 | . 1069 560 . Cannons 2577 | . . 2577 . Explosions 930 | . 405 525 . Melee 455 | . . 455 . Ramming 56 | . 5 51 . Kinetic 2133 | . 469 1664 . Thermal 1154 | . 428 726 . Explosive 547 | . 191 356 . Electromagnetic 1302 | . 386 916 . Impact 455 | . . 455 . Slashing . | . . . . Piercing . | . . . . Highest Corruption 1 | . 1 . . Average Corruption 1 | . 1 . . Corruption Purged . | . . . . Corruption Blocked . | . . . . Effects 6 | . 6 . . Matter Fused 2 | . 2 . . Energy Discharges 1 | . 1 . . Parts Fused 1 | . 1 . . Data Loss (major) 2 | . 2 . . Overload Shots . | . . . . Overflow Damage 234 | . . 234 . Projectiles 52 | . . 52 . Explosions 28 | . . 28 . Melee 154 | . . 154 . Knockbacks 31 | . . 31 . Impact . | . . . . Kinetic 27 | . . 27 . Secondary 4 | . . 4 . Self-Inflicted Damage 214 | . 38 176 . Shots 4 | . 1 3 . Rammed 14 | . 1 13 . Targets Rammed 14 | . 1 13 . Kicked . | . . . . Crushed . | . . . . Highest Temperature 375 | . 118 375 . Average Temperature 110 | . 37 126 . Received Heat Transfer 909 | . 285 624 . Effects 11 | . . 11 . Shutdowns 2 | . . 2 . Energy Bleed 1 | . . 1 . Interference 6 | . . 6 . Matter Decay 2 | . . 2 . Siege Activations . | . . . . Robots Corrupted 1 | . . 1 . Combat Hostiles 1 | . . 1 . Parts Fried 14 | . . 14 . Impact Corruptions 4 | . . 4 . Robots Melted 3 | . . 3 . Combat Hostiles 2 | . . 2 . Parts Melted 15 | . 2 13 . Heat Transferred 2881 | . 1053 1828 . Parts Sabotaged . | . . . . Parts Stolen . | . . . . Parts Stripped . | . . . . Power Chain Reactions 7 | . 3 4 . Alert | -11 -10 -9 -9 ------- Run | Yrd Mat Mat Min Peak Influence 840 | . 213 840 . Initial 257 | . . 85 257 Average 326 | . 110 490 . Maximum Alert Level 3 | . 1 3 . Low Security (%) 41 | 100 83 8 . Level 1 27 | . 16 36 . Level 2 13 | . . 23 . Level 3 17 | . . 30 . Level 4 . | . . . . Level 5 . | . . . . High Security . | . . . . Max Security . | . . . . Squads Dispatched 11 | . 4 7 . Investigation 6 | . 3 3 . Extermination . | . . . . Reinforcement 3 | . 1 2 . Assault 2 | . . 2 . Garrison . | . . . . Intercept . | . . . . Searches Triggered . | . . . . Construction Impeded 1 | . . 1 . Haulers Reinforced . | . . . . Active Scanning Responses . | . . . . Cargo Convoy Interrupts . | . . . . Stealth | -11 -10 -9 -9 --------- Run | Yrd Mat Mat Min Distress Signals 6 | . 3 3 . Communications Jammed . | . . . . Distress Signals . | . . . . Times Spotted 76 | . 22 54 . Peak Tracking Total 5 | . 4 5 . Tactical Retreats 1 | . . 1 . Traps | -11 -10 -9 -9 ------- Run | Yrd Mat Mat Min Traps Triggered 2 | . 1 1 . Indirectly . | . . . . Trap Hack Attempts . | . . . . Triggered . | . . . . Disarmed . | . . . . Reprogrammed . | . . . . Reused . | . . . . Traps Extracted . | . . . . Installed . | . . . . Triggered . | . . . . Machines | -11 -10 -9 -9 ---------- Run | Yrd Mat Mat Min Machines Disabled 4 | . . 4 . Max in Single Turn 4 | . . 4 . Machines Repaired . | . . . . Machines Dismantled . | . . . . Machines Sabotaged . | . . . . Overloaded Fab Kills . | . . . . Hacking | -11 -10 -9 -9 --------- Run | Yrd Mat Mat Min Machines Accessed 18 | . 10 8 . Terminals 12 | . 7 5 . Fabricators . | . . . . Repair Stations 3 | . 1 2 . Recycling Units 3 | . 2 1 . Scanalyzers . | . . . . Garrison Access . | . . . . Total Hacks 56 | . 30 26 . Successful 31 | . 14 17 . Failed 24 | . 15 9 . Catastrophic 2 | . 1 1 . Database Lockouts 1 | . 1 . . Manual 41 | . 25 16 . Terminals 47 | . 26 21 . Fabricators . | . . . . Repair Stations 6 | . 2 4 . Recycling Units 3 | . 2 1 . Scanalyzers . | . . . . Garrison Access . | . . . . Terminal Hacks 11 | . 5 6 . Robot Analysis 5 | . 1 4 . Prototype ID Bank 2 | . 1 1 . Terminal Index 1 | . 1 . . Unreport Threat 1 | . . 1 . Zone Layout 2 | . 2 . . Fabricator Hacks . | . . . . Repair Station Hacks 6 | . 2 4 . Scan Component 3 | . 1 2 . Repair 3 | . 1 2 . Recycling Unit Hacks . | . . . . Scanalyzer . | . . . . Garrison Access Hacks . | . . . . Unauthorized Hacks 14 | . 7 7 . Terminals 11 | . 5 6 . Assimilate 1 | . 1 . . Botnet 5 | . 3 2 . Operators 1 | . 1 . . Skim 4 | . . 4 . Fabricators . | . . . . Repair Stations . | . . . . Recycling Units 3 | . 2 1 . Tunnel 3 | . 2 1 . Scanalyzers . | . . . . Garrison Access . | . . . . Data Cores Recovered 1 | . . 1 . Used 1 | . . 1 . Hacking Detections 12 | . 5 7 . Full Trace Events 5 | . 4 1 . Feedback Events 1 | . 1 . . Corruption 1 | . 1 . . Feedback Blocked . | . . . . Robot Schematics Acquired . | . . . . Robots Built . | . . . . Authchips . | . . . . Time . | . . . . Total Robot Build Rating . | . . . . Part Schematics Acquired . | . . . . Parts Built . | . . . . Authchips . | . . . . Time . | . . . . Total Part Build Rating . | . . . . Parts Repaired 3 | . 1 2 . Time 84 | . 26 58 . Parts Recycled . | . . . . Recycled Matter . | . . . . Retrieved Matter . | . . . . Retrieved Components . | . . . . Parts Scanalyzed . | . . . . Part Schematics Acquired . | . . . . Parts Damaged . | . . . . Bothacking | -11 -10 -9 -9 ------------ Run | Yrd Mat Mat Min Used RIF Installer . | . . . . Robots Hacked . | . . . . Non-combat . | . . . . Combat . | . . . . Robot Hacks Applied . | . . . . Relay Couplers Released . | . . . . Fabnet Peak Effective % . | . . . . Robots Rewired . | . . . . Allies Hacked . | . . . . Hacks Repelled . | . . . . Allies | -11 -10 -9 -9 -------- Run | Yrd Mat Mat Min Total Allies 1 | . 1 . . Largest Group 1 | . 1 1 . Highest-Rated Group 10 | . 10 10 . Highest-Rated Ally 10 | . 10 10 . Total Orders 16 | . 6 10 . STAY 8 | . 3 5 . FOLLOW 8 | . 3 5 . Ally Attacks . | . . . . Total Damage . | . . . . Kills . | . . . . Allies Corrupted . | . . . . Allies Melted . | . . . . Intel | -11 -10 -9 -9 ------- Run | Yrd Mat Mat Min Robot Analysis Total 5 | . 1 4 . Derelict Logs Recovered . | . . . . Drone Launches . | . . . . Drone Recoveries . | . . . . Exploration | -11 -10 -9 -9 ------------- Run | Yrd Mat Mat Min Turns Passed 3669 | 78 1486 2105 . Spaces Moved 1213 | 45 494 674 . Core 5 | 5 . . . Treads 1208 | 40 494 674 . Legs . | . . . . Wheels . | . . . . Hover . | . . . . Flight . | . . . . Fastest Speed 50 | 50 160 160 . Average Speed 161 | 147 160 162 . Slowest Speed 240 | 160 160 240 . Overloaded Moves . | . . . . Propulsion Burnouts . | . . . . Robots Hopped . | . . . . Cave-ins Triggered . | . . . . Exploration Rate (%) 40 | 5 89 65 3 Regions Visited 3 Branch Regions 1 Pre-discovered Areas 3 | . 2 1 . Known Exits Taken . | . . . . Unknown Exits Taken 3 | 1 1 1 . Scrap Searched . | . . . . Spaces Dug 1 | . . 1 . Terrain Destroyed 74 | . 27 47 . Melee 1 | . . 1 . Projectile . | . . . . AOE 73 | . 27 46 . Terrain Rammed . | . . . . Walls Destroyed . | . . . . Machines Disabled . | . . . . Actions | -11 -10 -9 -9 --------- Run | Yrd Mat Mat Min Total 2538 | 53 1060 1425 . Wait 999 | . 468 531 . Move 1210 | 44 493 673 . Hop . | . . . . Pick Up 33 | 2 11 20 . Fast Attach 18 | 6 4 8 . Attach 7 | . 3 4 . Detach 1 | . . 1 . Swap 31 | 1 7 23 . Drop 22 | . 5 17 . Fire 186 | . 68 118 . Melee 17 | . . 17 . Ram . | . . . . Kick . | . . . . Crush 14 | . 1 13 . Escape Stasis . | . . . . Rewire . | . . . . Trap . | . . . . Miscellaneous . | . . . . Route ------- -11/Scrapyard -10/Materials (discovered 3 exits: *Mat x2 / [*Min]) -9/Materials (discovered 3 exits: [*Mat] / [*Min x2]) -9/Mines History --------- Turn | Location | Event 4 | -11/Scrapyard | Discovered new exit (range 15) 79 | -11/Scrapyard | Entered Materials 310 | -10/Materials | Build established: Mutant 312 | -10/Materials | Discovered new exit (range 15) 319 | -10/Materials | Central database locked down 579 | -10/Materials | Derelicts attacked the area 1372 | -10/Materials | Core integrity fell below 50% 1380 | -10/Materials | Discovered new exit (range 9) 1500 | -10/Materials | Discovered new exit (range 8) 1549 | -10/Materials | Repaired Lgt. Treads 1565 | -10/Materials | Entered another Materials area 1565 | -9/Materials | Accompanied by 1 ally 1565 | -9/Materials | Evolved 2 slots: Propulsion x1, Utility x1 2123 | -9/Materials | Discovered new exit (range 14) 2245 | -9/Materials | Repaired Lgt. Treads 2598 | -9/Materials | Core integrity fell below 50% 2687 | -9/Materials | Discovered new exit (range 3) 2765 | -9/Materials | First assault squad dispatched 2904 | -9/Materials | Destroyed 8 combat bots 3004 | -9/Materials | Build established: Scavenger-Mutant 3158 | -9/Materials | Repaired Med. Armor Plating 3235 | -9/Materials | Discovered new exit (range 15) 3508 | -9/Materials | Build established: Mutant 3670 | -9/Materials | Entered Mines 3670 | -9/Mines | Self-destructed Last Messages --------------- 03211_ Terminal disabled. 03211_ Nuclear Reactor explodes. 03211_ System Shield destroyed. 03211_ Destroyed System Shield. 03211_ Electrolysis Chamber disabled. 03212_ A-02 Transporter destroyed. 03221_ Acquired Prototype Engine. 03221_ Identified Hvy. Ion Engine. 03226_ U-05 Engineer lays Concrete. 03235_ EXIT=FOUND 03236_ U-05 Engineer lays Concrete. 03236_ R-06 Scavenger collects Imp. Ion Engine. 03238_ U-05 Engineer lays Concrete. 03241_ R-06 Scavenger collects Hvy. Ion Engine. 03244_ R-06 Scavenger collects Faulty Hvy. Ion Engine. 03245_ U-05 Engineer lays Concrete. 03297_ K-01 Serf collects debris. LOCATION=UNKNOWN GOAL=ESCAPE Map ----- +----------------------------------------------------+ | ?????????????????????????????????????? | | ?????????????????????????????????????? | | ?????????????????????????????????????? | | ?????????????????????????????????????? | | ?????????????????????????????????????? | | ?????????????????????????????????????? | | ?????????????????????????????????????? | | ?????????????????????????????????????? | | ?????????????????????????????????????? | | ?????????????????????????????????????? | | ?????????????????????????????????????? | | ?????????????????????????????????????? | | ?????????????????????????????????????? | | ?????????????????????????????????????? | | ?????????????????????????????????????? | | ?????????????????????????????????????? | | ?????????????????????????????????????? | | ?????????????????????????????????????? | | ?????????????????????????????????????? | | ?????????????????????????????????????? | | ?????????????????????????????????????? | | ?????????????????????????????????????? | | ?????????????????????????????????????? | | ????????????####?????????????????????? | | ???????????## ## """ ?????????????? | | ???????????# @ """ ?????????????? | | ??????????# """ ?????????????? | | ????????? ???????????? | | ???????# #### ####???????????? | | ???????# #????#### #??????????????? | | ???????# ?????????? #??????????????? | | ???????# ???????????????????????????? | | ??????? ???????????????????????????? | | ?????? ????????????????????????????? | | ????? ##?????????????????????????????? | | ????# ???????????????????????????????? | | ????#????????????????????????????????? | | ?????????????????????????????????????? | | ?????????????????????????????????????? | | ?????????????????????????????????????? | | ?????????????????????????????????????? | | ?????????????????????????????????????? | | ?????????????????????????????????????? | | ?????????????????????????????????????? | | ?????????????????????????????????????? | | ?????????????????????????????????????? | | ?????????????????????????????????????? | | ?????????????????????????????????????? | | ?????????????????????????????????????? | | ?????????????????????????????????????? | +----------------------------------------------------+ Best States ------------- Heat Dissipation 28 Energy Generation 14 Energy Capacity 280 Matter Stores 300 Matter Capacity 300 Sight Range 16 Terrain Scan Density 10 Armor Coverage 225 Evasion (%) 40 Recoil Reduction 3 Offensive Hacking 10 Defensive Hacking 10 Item Schematics ----------------- None Robot Schematics ------------------ None Fabricated ------------ Nothing Alien Tech Used ----------------- None Achievements -------------- None Challenges ------------ None Game ------ Seed ZhirovNuclearTrap Manual? 0 Play Time 00:22:44 Cumulative 188.0 hours Start 2024.11.21 @ 01:17:07 End 2024.11.21 @ 01:39:48 Sessions 1 Manual Loads 0 Difficulty Rogue Special Mode None Game No. 121 Rogue 85 Adventurer 36 Explorer 0 Win Type - Total 3 Types 2/0/0/1/0/0/0/0/0 Lore% 56 Gallery% 65 Achievement% 57 Wizard Run 0 Options --------- Layout 1 ASCII 0 Keyboard 0 Movement Numpad Keybinds 0 Fullscreen 1 Font 48/Smallcaps Map View 50x35 Zoom Use 0% Tactical HUD 1 Map Filters NONE Filters NONE Steam 1 RUN: ed0c0b2d-9901-4921-baf0-2730701273c0